{"text_format":"1","workbook":"xlsx","n_sheets":4,"sheets":["Accueil","Enchaînement n°1","Enchaînement n°2","Enchaînement n°3"],"not_rendered":{"charts":0,"images":12,"macros":1,"external_links":0,"defined_names":0,"comments":3,"pivot_tables":0},"unopened":[],"bounds":{"document_bytes":16777216,"sheet_cells":100000,"rows_first":2000,"rows_last":500,"rows_between":2000,"halvings":0,"cell_chars":16384,"cell_head_chars":4096},"cells_cut":0,"cells_raw":0,"read":"whole","date_system":"1900"}

{"sheet":"Accueil","index":0,"n_rows":0,"n_cols":0,"rows_kept":0,"cut":false,"hidden":false,"merged":[]}

{"sheet":"Enchaînement n°1","index":1,"n_rows":14,"n_cols":15,"rows_kept":14,"cut":false,"hidden":false,"merged":[[5,1,11,1],[1,3,1,15],[6,3,7,3],[8,3,9,3],[10,3,11,3],[4,3,5,3]]}
[]
[null,null,null,"EVALUATION FORMATIVE Séance 2                                                                                                                                                                                                                            ENCHAINEMENT N°1 (Sur 6 points)"]
[]
[]
[null,null,null,"1pt","OUI","NON",null,"Points","DISCONTINUITE"," HESITATION",null,"Points","OUI","NON","Points"]
[null,"Chaque figure est notée selon sa valeur.         La tenue 3\", le montage et le démontage doivent être correctement réalisé                 (sinon retrait de points)",null,null,false,false,{"$f":"COUNTIF(E6:F6,FALSE)","v":2},{"$f":"IF(G6=0,-1,IF(E6=TRUE,1,IF(F6=TRUE,0,\" \")))","v":" "},false,false,{"$f":"COUNTIF(I6:J6,TRUE)","v":0},{"$f":"IF(K6=0,\" \",K6*-0.5)","v":" "},false,false,{"$f":"IF(M6=TRUE,0,IF(N6=TRUE,-0.5,\" \"))","v":" "}]
[null,null,null,"2pts","OUI","NON",null,"Points","DISCONTINUITE"," HESITATION",null,"Points","OUI","NON","Points"]
[null,null,null,null,false,false,{"$f":"COUNTIF(E8:F8,FALSE)","v":2},{"$f":"IF(G8=0,-3,IF(E8=TRUE,2,IF(F8=TRUE,1,\" \")))","v":" "},false,false,{"$f":"COUNTIF(I8:J8,TRUE)","v":0},{"$f":"IF(K8=0,\" \",K8*-0.5)","v":" "},false,false,{"$f":"IF(M8=TRUE,0,IF(N8=TRUE,-0.5,\" \"))","v":" "}]
[null,null,null,"1pt","OUI","NON",null,"Points","DISCONTINUITE"," HESITATION",null,"Points","OUI","NON","Points"]
[null,null,null,null,false,false,{"$f":"COUNTIF(E10:F10,FALSE)","v":2},{"$f":"IF(G10=0,-1,IF(E10=TRUE,1,IF(F10=TRUE,0,\" \")))","v":" "},false,false,{"$f":"COUNTIF(I10:J10,TRUE)","v":0},{"$f":"IF(K10=0,\" \",K10*-0.5)","v":" "},false,false,{"$f":"IF(M10=TRUE,0,IF(N10=TRUE,-0.5,\" \"))","v":" "}]
[null,null,null,"2 pts","OUI","NON",null,"Points","DISCONTINUITE"," HESITATION",null,"Points","OUI","NON","Points"]
[null,null,null,null,false,false,{"$f":"COUNTIF(E12:F12,FALSE)","v":2},{"$f":"IF(G12=0,-3,IF(E12=TRUE,2,IF(F12=TRUE,1,\" \")))","v":" "},false,false,{"$f":"COUNTIF(I12:J12,TRUE)","v":0},{"$f":"IF(K12=0,\" \",K12*-0.5)","v":" "},false,false,{"$f":"IF(M12=TRUE,0,IF(N12=TRUE,-0.5,\" \"))","v":" "}]
[null,null,null,null,null,null,null,{"$f":"SUM(H12,H10,H8,H6)","v":0},null,null,null,{"$f":"SUM(L12,L10,L8,L6)","v":0},null,null,{"$f":"SUM(O12,O10,O8,O6)","v":0}]
[null,null,null,null,null,null,null,null,null,null,null,null,{"$f":"IF(H13=0,\" \",IF(SUM(H13,L13,O13)<0,0,SUM(H13,L13,O13)))","v":" "}]

{"sheet":"Enchaînement n°2","index":2,"n_rows":14,"n_cols":15,"rows_kept":14,"cut":false,"hidden":false,"merged":[[5,1,11,1],[1,3,1,15],[4,3,5,3],[6,3,7,3],[8,3,9,3],[10,3,11,3]]}
[]
[null,null,null,"EVALUATION FORMATIVE Séance 2                                                                                                                                                                                                                            ENCHAINEMENT N°2 (Sur 8 points)"]
[]
[]
[null,null,null,"2 pts","OUI","NON",null,"Points","DISCONTINUITE"," HESITATION",null,"Points","OUI","NON","Points"]
[null,"Chaque figure est notée selon sa valeur.         La tenue 3\", le montage et le démontage doivent être correctement réalisé                (sinon retrait de points)",null,null,false,false,{"$f":"COUNTIF(E6:F6,FALSE)","v":2},{"$f":"IF(G6=0,-2,IF(E6=TRUE,2,IF(F6=TRUE,1,\" \")))","v":" "},false,false,{"$f":"COUNTIF(I6:J6,TRUE)","v":0},{"$f":"IF(K6=0,\" \",K6*-0.5)","v":" "},false,false,{"$f":"IF(M6=TRUE,0,IF(N6=TRUE,-0.5,\" \"))","v":" "}]
[null,null,null,"2 pts","OUI","NON",null,"Points","DISCONTINUITE"," HESITATION",null,"Points","OUI","NON","Points"]
[null,null,null,null,false,false,{"$f":"COUNTIF(E8:F8,FALSE)","v":2},{"$f":"IF(G8=0,-2,IF(E8=TRUE,2,IF(F8=TRUE,1,\" \")))","v":" "},false,null,{"$f":"COUNTIF(I8:J8,TRUE)","v":0},{"$f":"IF(K8=0,\" \",K8*-0.5)","v":" "},false,false,{"$f":"IF(M8=TRUE,0,IF(N8=TRUE,-0.5,\" \"))","v":" "}]
[null,null,null,"2 pts","OUI","NON",null,"Points","DISCONTINUITE"," HESITATION",null,"Points","OUI","NON","Points"]
[null,null,null,null,false,false,{"$f":"COUNTIF(E10:F10,FALSE)","v":2},{"$f":"IF(G10=0,-2,IF(E10=TRUE,2,IF(F10=TRUE,1,\" \")))","v":" "},false,null,{"$f":"COUNTIF(I10:J10,TRUE)","v":0},{"$f":"IF(K10=0,\" \",K10*-0.5)","v":" "},false,false,{"$f":"IF(M10=TRUE,0,IF(N10=TRUE,-0.5,\" \"))","v":" "}]
[null,null,null,"2 pts","OUI","NON",null,"Points","DISCONTINUITE"," HESITATION",null,"Points","OUI","NON","Points"]
[null,null,null,null,false,false,{"$f":"COUNTIF(E12:F12,FALSE)","v":2},{"$f":"IF(G12=0,-2,IF(E12=TRUE,2,IF(F12=TRUE,1,\" \")))","v":" "},null,false,{"$f":"COUNTIF(I12:J12,TRUE)","v":0},{"$f":"IF(K12=0,\" \",K12*-0.5)","v":" "},false,false,{"$f":"IF(M12=TRUE,0,IF(N12=TRUE,-0.5,\" \"))","v":" "}]
[null,null,null,null,null,null,null,{"$f":"SUM(H12,H10,H8,H6)","v":0},null,null,null,{"$f":"SUM(L12,L10,L8,L6)","v":0},null,null,{"$f":"SUM(O12,O10,O8,O6)","v":0}]
[null,null,null,null,null,null,null,null,null,null,null,null,{"$f":"IF(H13=0,\" \",IF(SUM(H13,L13,O13)<0,0,SUM(H13,L13,O13)))","v":" "}]

{"sheet":"Enchaînement n°3","index":3,"n_rows":14,"n_cols":15,"rows_kept":14,"cut":false,"hidden":false,"merged":[[5,1,11,1],[1,3,1,15],[4,3,5,3],[6,3,7,3],[8,3,9,3],[10,3,11,3]]}
[]
[null,null,null,"EVALUATION FORMATIVE Séance 2                                                                                                                                                                                                                            ENCHAINEMENT N°3 (Sur 10 points)"]
[]
[]
[null,null,null,"1 pt","OUI","NON",null,"Points","DISCONTINUITE"," HESITATION",null,"Points","OUI","NON","Points"]
[null,"Chaque figure est notée selon sa valeur.        La tenue 3\", le montage et le démontage doivent être correctement réalisé                     (sinon retrait de points)",null,null,false,false,{"$f":"COUNTIF(E6:F6,FALSE)","v":2},{"$f":"IF(G6=0,-1,IF(E6=TRUE,1,IF(F6=TRUE,0,\" \")))","v":" "},false,false,{"$f":"COUNTIF(I6:J6,TRUE)","v":0},{"$f":"IF(K6=0,\" \",K6*-0.5)","v":" "},false,false,{"$f":"IF(M6=TRUE,0,IF(N6=TRUE,-0.5,\" \"))","v":" "}]
[null,null,null,"3 pts","OUI","NON",null,"Points","DISCONTINUITE"," HESITATION",null,"Points","OUI","NON","Points"]
[null,null,null,null,false,false,{"$f":"COUNTIF(E8:F8,FALSE)","v":2},{"$f":"IF(G8=0,-2,IF(E8=TRUE,3,IF(F8=TRUE,2,\" \")))","v":" "},false,false,{"$f":"COUNTIF(I8:J8,TRUE)","v":0},{"$f":"IF(K8=0,\" \",K8*-0.5)","v":" "},false,false,{"$f":"IF(M8=TRUE,0,IF(N8=TRUE,-0.5,\" \"))","v":" "}]
[null,null,null,"4 pts","OUI","NON",null,"Points","DISCONTINUITE"," HESITATION",null,"Points","OUI","NON","Points"]
[null,null,null,null,false,false,{"$f":"COUNTIF(E10:F10,FALSE)","v":2},{"$f":"IF(G10=0,-1,IF(E10=TRUE,4,IF(F10=TRUE,3,\" \")))","v":" "},false,false,{"$f":"COUNTIF(I10:J10,TRUE)","v":0},{"$f":"IF(K10=0,\" \",K10*-0.5)","v":" "},false,false,{"$f":"IF(M10=TRUE,0,IF(N10=TRUE,-0.5,\" \"))","v":" "}]
[null,null,null,"2 pts","OUI","NON",null,"Points","DISCONTINUITE"," HESITATION",null,"Points","OUI","NON","Points"]
[null,null,null,null,false,false,{"$f":"COUNTIF(E12:F12,FALSE)","v":2},{"$f":"IF(G12=0,-2,IF(E12=TRUE,2,IF(F12=TRUE,1,\" \")))","v":" "},false,null,{"$f":"COUNTIF(I12:J12,TRUE)","v":0},{"$f":"IF(K12=0,\" \",K12*-0.5)","v":" "},false,false,{"$f":"IF(M12=TRUE,0,IF(N12=TRUE,-0.5,\" \"))","v":" "}]
[null,null,null,null,null,null,null,{"$f":"SUM(H12,H10,H8,H6)","v":0},null,null,null,{"$f":"SUM(L12,L10,L8,L6)","v":0},null,null,{"$f":"SUM(O12,O10,O8,O6)","v":0}]
[null,null,null,null,null,null,null,null,null,null,null,null,{"$f":"IF(H13=0,\" \",IF(SUM(H13,L13,O13)<0,0,SUM(H13,L13,O13)))","v":" "}]